[Event "Early-Titled-Tuesday-Blitz-September-12-2023"]
[Site "Chess.com"]
[Date "2023.09.12"]
[Round "9"]
[White "Fleetw00dMac"]
[Black "DonJuanEGenaro"]
[Result "1-0"]
[WhiteElo "2467"]
[BlackElo "1993"]
[TimeControl "180+1"]
[EndTime "9:44:52 PDT"]
[Termination "Fleetw00dMac won on time"]

1. d4 {[%clk 0:03:00.9]} 1... d5 {[%clk 0:02:58.9]} 2. c4 {[%clk 0:03:00.3]}
2... e6 {[%clk 0:02:58.8]} 3. Nc3 {[%clk 0:02:59.9]} 3... c5 {[%clk 0:02:58.6]}
4. cxd5 {[%clk 0:02:59.7]} 4... cxd4 {[%clk 0:02:58.3]} 5. Qa4+ {[%clk
0:02:58.6]} 5... b5 {[%clk 0:02:56.9]} 6. Qxd4 {[%clk 0:02:20.8]} 6... Nf6
{[%clk 0:02:44.5]} 7. e4 {[%clk 0:02:14.3]} 7... a6 {[%clk 0:02:14.6]} 8. Nf3
{[%clk 0:02:08.9]} 8... b4 {[%clk 0:01:56.3]} 9. e5 {[%clk 0:02:04.5]} 9... Nxd5
{[%clk 0:01:29.8]} 10. Nxd5 {[%clk 0:02:02.8]} 10... Qxd5 {[%clk 0:01:26.7]} 11.
Bc4 {[%clk 0:01:50.8]} 11... Qxd4 {[%clk 0:01:21.2]} 12. Nxd4 {[%clk 0:01:50.6]}
12... Bc5 {[%clk 0:01:20.4]} 13. Be3 {[%clk 0:01:49.5]} 13... O-O {[%clk
0:01:17]} 14. O-O {[%clk 0:01:44.9]} 14... Rd8 {[%clk 0:01:01.6]} 15. Rfd1
{[%clk 0:01:44]} 15... Bxd4 {[%clk 0:01:00]} 16. Bxd4 {[%clk 0:01:37.7]} 16...
Nc6 {[%clk 0:00:59.6]} 17. Bb6 {[%clk 0:01:37.1]} 17... Re8 {[%clk 0:00:56.1]}
18. f4 {[%clk 0:01:33.7]} 18... Rb8 {[%clk 0:00:44.9]} 19. Be3 {[%clk
0:01:30.1]} 19... Na5 {[%clk 0:00:36.5]} 20. Be2 {[%clk 0:01:25]} 20... Bb7
{[%clk 0:00:36]} 21. Rd6 {[%clk 0:01:07.7]} 21... Ra8 {[%clk 0:00:15.2]} 22. Rc1
{[%clk 0:01:01.6]} 22... Rec8 {[%clk 0:00:13.1]} 23. Rc5 {[%clk 0:00:50.6]}
23... Rxc5 {[%clk 0:00:09.6]} 24. Bxc5 {[%clk 0:00:50.4]} 24... Bd5 {[%clk
0:00:07.8]} 25. Bxb4 {[%clk 0:00:42.6]} 25... Nc4 {[%clk 0:00:06.8]} 26. Rd7
{[%clk 0:00:32.2]} 26... Nxb2 {[%clk 0:00:04.2]} 27. a3 {[%clk 0:00:30.9]} 27...
Nc4 {[%clk 0:00:03.7]} 28. Rc7 {[%clk 0:00:24.9]} 1-0

[Event "Early-Titled-Tuesday-Blitz-September-12-2023"]
[Site "Chess.com"]
[Date "2023.09.12"]
[Round "9"]
[White "CristianS27"]
[Black "MaxLeto"]
[Result "0-1"]
[WhiteElo "2501"]
[BlackElo "2408"]
[TimeControl "180+1"]
[EndTime "9:44:55 PDT"]
[Termination "MaxLeto won by resignation"]

1. e4 {[%clk 0:03:00.9]} 1... c5 {[%clk 0:02:59.9]} 2. Nf3 {[%clk 0:03:00.9]}
2... d6 {[%clk 0:02:59.8]} 3. d4 {[%clk 0:03:01.5]} 3... cxd4 {[%clk 0:03:00.7]}
4. Nxd4 {[%clk 0:03:02.4]} 4... Nf6 {[%clk 0:03:01.2]} 5. Nc3 {[%clk 0:03:03]}
5... a6 {[%clk 0:03:01.7]} 6. Be3 {[%clk 0:03:03.5]} 6... Ng4 {[%clk 0:03:01.7]}
7. Bc1 {[%clk 0:03:03.2]} 7... Nf6 {[%clk 0:03:01.1]} 8. a4 {[%clk 0:02:54.5]}
8... Nc6 {[%clk 0:02:58.3]} 9. a5 {[%clk 0:02:50.3]} 9... Nxa5 {[%clk
0:02:54.7]} 10. Nd5 {[%clk 0:02:50.2]} 10... Nc6 {[%clk 0:02:50.1]} 11. Be3
{[%clk 0:02:23.4]} 11... Nd7 {[%clk 0:02:34.3]} 12. Nb5 {[%clk 0:02:17.6]} 12...
axb5 {[%clk 0:01:37.6]} 13. Rxa8 {[%clk 0:02:18.5]} 13... e6 {[%clk 0:01:38.5]}
14. Nc3 {[%clk 0:01:48.2]} 14... b4 {[%clk 0:01:14.1]} 15. Nb5 {[%clk
0:01:46.5]} 15... Ndb8 {[%clk 0:01:07.9]} 16. Be2 {[%clk 0:01:03.1]} 16... Be7
{[%clk 0:01:06.8]} 17. O-O {[%clk 0:01:03.2]} 17... O-O {[%clk 0:01:07.2]} 18.
f4 {[%clk 0:00:58.2]} 18... b6 {[%clk 0:01:00.2]} 19. Bf3 {[%clk 0:00:50.8]}
19... Bb7 {[%clk 0:01:00.6]} 20. Ra1 {[%clk 0:00:51.3]} 20... Na6 {[%clk
0:00:58.1]} 21. Qe2 {[%clk 0:00:50.7]} 21... Nc5 {[%clk 0:00:57.5]} 22. Rfd1
{[%clk 0:00:47.3]} 22... Qb8 {[%clk 0:00:56.8]} 23. Nd4 {[%clk 0:00:39.1]} 23...
Rc8 {[%clk 0:00:44.8]} 24. Nxc6 {[%clk 0:00:36.2]} 24... Bxc6 {[%clk 0:00:45.7]}
25. Bf2 {[%clk 0:00:21.4]} 25... Qb7 {[%clk 0:00:45.5]} 26. Re1 {[%clk
0:00:20.2]} 26... Na4 {[%clk 0:00:45.2]} 27. Rab1 {[%clk 0:00:14.5]} 27... Bf6
{[%clk 0:00:45.4]} 28. e5 {[%clk 0:00:12.8]} 28... dxe5 {[%clk 0:00:46]} 29.
fxe5 {[%clk 0:00:12.2]} 29... Be7 {[%clk 0:00:46.3]} 30. Bxc6 {[%clk 0:00:11.1]}
30... Qxc6 {[%clk 0:00:47.2]} 31. Rec1 {[%clk 0:00:05]} 31... h6 {[%clk
0:00:45.3]} 32. Qf3 {[%clk 0:00:04.8]} 32... Bg5 {[%clk 0:00:43.5]} 33. Qxc6
{[%clk 0:00:03.5]} 33... Rxc6 {[%clk 0:00:44.4]} 34. Rd1 {[%clk 0:00:03.2]}
34... Rxc2 {[%clk 0:00:44.8]} 35. h4 {[%clk 0:00:02.8]} 35... Bf4 {[%clk
0:00:44.4]} 36. Rd8+ {[%clk 0:00:01.8]} 36... Kh7 {[%clk 0:00:43.8]} 37. Rc1
{[%clk 0:00:01.2]} 37... Rxc1+ {[%clk 0:00:41.7]} 0-1

[Event "Early-Titled-Tuesday-Blitz-September-12-2023"]
[Site "Chess.com"]
[Date "2023.09.12"]
[Round "9"]
[White "Gogolev_Artemy"]
[Black "cukin84"]
[Result "1-0"]
[WhiteElo "2396"]
[BlackElo "2228"]
[TimeControl "180+1"]
[EndTime "9:45:04 PDT"]
[Termination "Gogolev_Artemy won by checkmate"]

1. e4 {[%clk 0:02:59.9]} 1... c6 {[%clk 0:02:59.4]} 2. d4 {[%clk 0:02:58.8]}
2... d5 {[%clk 0:02:59.6]} 3. e5 {[%clk 0:02:59.2]} 3... c5 {[%clk 0:03:00]} 4.
dxc5 {[%clk 0:02:58.8]} 4... e6 {[%clk 0:02:59.8]} 5. Nf3 {[%clk 0:02:48.2]}
5... Bxc5 {[%clk 0:02:59.2]} 6. c3 {[%clk 0:02:48.6]} 6... Nc6 {[%clk
0:02:58.2]} 7. Bd3 {[%clk 0:02:48.8]} 7... a5 {[%clk 0:02:54.1]} 8. a4 {[%clk
0:02:39.4]} 8... Nge7 {[%clk 0:02:53.1]} 9. O-O {[%clk 0:02:39.3]} 9... Ng6
{[%clk 0:02:51.9]} 10. Re1 {[%clk 0:02:37.4]} 10... O-O {[%clk 0:02:50.8]} 11.
Na3 {[%clk 0:02:15.9]} 11... Nh4 {[%clk 0:02:49.3]} 12. Bf4 {[%clk 0:01:59.7]}
12... g6 {[%clk 0:02:33.3]} 13. Nb5 {[%clk 0:01:57]} 13... b6 {[%clk 0:02:26.6]}
14. Nfd4 {[%clk 0:01:40.4]} 14... Bxd4 {[%clk 0:02:21.4]} 15. cxd4 {[%clk
0:01:18.9]} 15... Ba6 {[%clk 0:02:19.9]} 16. Qg4 {[%clk 0:01:04.9]} 16... Nf5
{[%clk 0:02:16.9]} 17. Bg5 {[%clk 0:01:04.8]} 17... Qd7 {[%clk 0:02:04.3]} 18.
Bxf5 {[%clk 0:00:53.6]} 18... exf5 {[%clk 0:02:04]} 19. Qh4 {[%clk 0:00:54]}
19... Nd8 {[%clk 0:01:57]} 20. Nd6 {[%clk 0:00:48]} 20... Ne6 {[%clk 0:01:54.2]}
21. Bf6 {[%clk 0:00:48.4]} 21... Rfc8 {[%clk 0:01:42.2]} 22. Re3 {[%clk
0:00:35.7]} 22... h5 {[%clk 0:01:26]} 23. Nxf5 {[%clk 0:00:29.6]} 23... Nf8
{[%clk 0:01:01.3]} 24. Ne7+ {[%clk 0:00:06.8]} 24... Kh7 {[%clk 0:01:00.7]} 25.
Nxc8 {[%clk 0:00:07.5]} 25... Rxc8 {[%clk 0:00:59.4]} 26. h3 {[%clk 0:00:06.3]}
26... Rc2 {[%clk 0:00:46.7]} 27. g4 {[%clk 0:00:06.2]} 27... Be2 {[%clk
0:00:30.3]} 28. Rxe2 {[%clk 0:00:03.2]} 28... Rxe2 {[%clk 0:00:29.4]} 29. gxh5
{[%clk 0:00:03.8]} 29... Re4 {[%clk 0:00:19.5]} 30. hxg6+ {[%clk 0:00:03.4]}
30... Kxg6 {[%clk 0:00:17.3]} 31. Qg5+ {[%clk 0:00:04]} 31... Kh7 {[%clk
0:00:15.1]} 32. Qg7# {[%clk 0:00:04.9]} 1-0

[Event "Early-Titled-Tuesday-Blitz-September-12-2023"]
[Site "Chess.com"]
[Date "2023.09.12"]
[Round "9"]
[White "nihalsarin"]
[Black "Alexandr_Predke"]
[Result "1/2-1/2"]
[WhiteElo "3099"]
[BlackElo "2911"]
[TimeControl "180+1"]
[EndTime "9:45:05 PDT"]
[Termination "Game drawn - insufficient material"]

1. a3 {[%clk 0:03:00.9]} 1... a6 {[%clk 0:02:59.3]} 2. g3 {[%clk 0:02:59.7]}
2... Nf6 {[%clk 0:02:58.5]} 3. Bg2 {[%clk 0:03:00.3]} 3... g6 {[%clk 0:02:59]}
4. b4 {[%clk 0:03:00.8]} 4... Bg7 {[%clk 0:02:59.1]} 5. Bb2 {[%clk 0:03:01.6]}
5... O-O {[%clk 0:02:59.6]} 6. c4 {[%clk 0:03:02.3]} 6... d6 {[%clk 0:02:59.6]}
7. Nf3 {[%clk 0:03:03]} 7... e5 {[%clk 0:02:58.1]} 8. d3 {[%clk 0:03:03.7]} 8...
Nc6 {[%clk 0:02:57.6]} 9. O-O {[%clk 0:03:04.4]} 9... Bf5 {[%clk 0:02:55.7]} 10.
Nc3 {[%clk 0:03:05]} 10... Qd7 {[%clk 0:02:55.1]} 11. Nd2 {[%clk 0:03:05.5]}
11... Bh3 {[%clk 0:02:53.5]} 12. Rc1 {[%clk 0:03:06.2]} 12... Bxg2 {[%clk
0:02:47.4]} 13. Kxg2 {[%clk 0:03:07.1]} 13... Nd4 {[%clk 0:02:47.1]} 14. e3
{[%clk 0:03:07.6]} 14... Ne6 {[%clk 0:02:47.4]} 15. Nde4 {[%clk 0:03:08.3]}
15... Nxe4 {[%clk 0:02:46.2]} 16. dxe4 {[%clk 0:03:09.2]} 16... f5 {[%clk
0:02:39.9]} 17. c5 {[%clk 0:03:09.4]} 17... fxe4 {[%clk 0:02:27.9]} 18. cxd6
{[%clk 0:03:09.1]} 18... cxd6 {[%clk 0:02:28]} 19. Qd5 {[%clk 0:03:08.3]} 19...
Qf7 {[%clk 0:02:11.3]} 20. Rcd1 {[%clk 0:03:08.6]} 20... Kh8 {[%clk 0:02:04.9]}
21. Nxe4 {[%clk 0:03:08.7]} 21... Rad8 {[%clk 0:01:59.9]} 22. Nxd6 {[%clk
0:03:09]} 22... Rxd6 {[%clk 0:01:55.3]} 23. Qxd6 {[%clk 0:03:09.9]} 23... Qf3+
{[%clk 0:01:49.7]} 24. Kg1 {[%clk 0:03:10.4]} 24... Ng5 {[%clk 0:01:50.3]} 25.
Qd7 {[%clk 0:03:11.1]} 25... Qe4 {[%clk 0:01:33.9]} 26. f3 {[%clk 0:02:05.3]}
26... Nxf3+ {[%clk 0:01:32.3]} 27. Rxf3 {[%clk 0:02:05.4]} 27... Qxf3 {[%clk
0:01:33.2]} 28. Qd2 {[%clk 0:02:00.6]} 28... h5 {[%clk 0:01:27.8]} 29. Re1
{[%clk 0:02:00.1]} 29... Kh7 {[%clk 0:01:21.1]} 30. Qg2 {[%clk 0:01:59.5]} 30...
e4 {[%clk 0:01:17.8]} 31. Bxg7 {[%clk 0:01:59.1]} 31... Kxg7 {[%clk 0:01:18.4]}
32. a4 {[%clk 0:01:31.2]} 32... g5 {[%clk 0:01:17.7]} 33. b5 {[%clk 0:01:22.5]}
33... axb5 {[%clk 0:01:18.6]} 34. axb5 {[%clk 0:01:23.4]} 34... Kg6 {[%clk
0:01:17.4]} 35. Qd2 {[%clk 0:01:22.8]} 35... Rf6 {[%clk 0:01:08.4]} 36. Qa2
{[%clk 0:01:22.9]} 36... Kh6 {[%clk 0:01:04.9]} 37. Qe2 {[%clk 0:01:15.5]} 37...
h4 {[%clk 0:01:00.3]} 38. Qxf3 {[%clk 0:01:13.4]} 38... Rxf3 {[%clk 0:00:51.6]}
39. gxh4 {[%clk 0:01:13.7]} 39... gxh4 {[%clk 0:00:51.5]} 40. Rd1 {[%clk
0:01:14.5]} 40... Rxe3 {[%clk 0:00:46.5]} 41. Rd7 {[%clk 0:01:15.2]} 41... Re2
{[%clk 0:00:29.9]} 42. Rxb7 {[%clk 0:01:13.7]} 42... h3 {[%clk 0:00:29.3]} 43.
Re7 {[%clk 0:00:59.9]} 43... e3 {[%clk 0:00:29.2]} 44. Kf1 {[%clk 0:00:59.1]}
44... Rf2+ {[%clk 0:00:25.7]} 45. Ke1 {[%clk 0:00:55.7]} 45... Rxh2 {[%clk
0:00:24]} 46. Rxe3 {[%clk 0:00:56.1]} 46... Rb2 {[%clk 0:00:19.6]} 47. Rxh3+
{[%clk 0:00:55]} 47... Kg6 {[%clk 0:00:19.9]} 48. Rc3 {[%clk 0:00:54]} 48...
Rxb5 {[%clk 0:00:18.7]} 49. Kf2 {[%clk 0:00:54.8]} 49... Rf5+ {[%clk 0:00:18.4]}
50. Kg3 {[%clk 0:00:55.5]} 50... Rg5+ {[%clk 0:00:18.6]} 51. Kf4 {[%clk
0:00:56.3]} 51... Rf5+ {[%clk 0:00:19.1]} 52. Ke4 {[%clk 0:00:57.1]} 52... Rf6
{[%clk 0:00:19.5]} 53. Rg3+ {[%clk 0:00:57.2]} 53... Kf7 {[%clk 0:00:19.3]} 54.
Rf3 {[%clk 0:00:58.1]} 54... Rxf3 {[%clk 0:00:19.2]} 55. Kxf3 {[%clk 0:00:59]}
1/2-1/2

[Event "Early-Titled-Tuesday-Blitz-September-12-2023"]
[Site "Chess.com"]
[Date "2023.09.12"]
[Round "9"]
[White "Iskusnyh"]
[Black "AnaKuchava"]
[Result "1-0"]
[WhiteElo "2620"]
[BlackElo "2238"]
[TimeControl "180+1"]
[EndTime "9:45:05 PDT"]
[Termination "Iskusnyh won on time"]

1. d4 {[%clk 0:02:12.4]} 1... d5 {[%clk 0:02:52.2]} 2. c4 {[%clk 0:02:11.6]}
2... e6 {[%clk 0:02:47.3]} 3. Nf3 {[%clk 0:02:11.6]} 3... Nf6 {[%clk 0:02:46]}
4. g3 {[%clk 0:02:11.8]} 4... Bb4+ {[%clk 0:02:41.2]} 5. Bd2 {[%clk 0:02:10.3]}
5... Be7 {[%clk 0:02:38.3]} 6. Bg2 {[%clk 0:02:09.7]} 6... O-O {[%clk
0:02:35.3]} 7. O-O {[%clk 0:02:10.3]} 7... c6 {[%clk 0:02:33.2]} 8. Qc2 {[%clk
0:02:09.6]} 8... b6 {[%clk 0:02:22.1]} 9. a3 {[%clk 0:02:00.4]} 9... Bb7 {[%clk
0:02:21.3]} 10. cxd5 {[%clk 0:01:41.4]} 10... cxd5 {[%clk 0:02:20.8]} 11. Bb4
{[%clk 0:01:40.8]} 11... Nc6 {[%clk 0:01:58.6]} 12. Bxe7 {[%clk 0:01:39.3]}
12... Qxe7 {[%clk 0:01:59.5]} 13. Nc3 {[%clk 0:01:39.1]} 13... Rac8 {[%clk
0:01:51]} 14. Rfc1 {[%clk 0:01:38.5]} 14... Na5 {[%clk 0:01:42.9]} 15. Nd2
{[%clk 0:01:35.9]} 15... a6 {[%clk 0:01:15.7]} 16. Qd1 {[%clk 0:01:30.9]} 16...
Nc4 {[%clk 0:01:13.5]} 17. Nxc4 {[%clk 0:01:30]} 17... Rxc4 {[%clk 0:01:12.1]}
18. Rc2 {[%clk 0:01:23]} 18... Rfc8 {[%clk 0:01:07.9]} 19. Rac1 {[%clk
0:01:22.1]} 19... h6 {[%clk 0:00:58.8]} 20. e3 {[%clk 0:01:21.5]} 20... R4c7
{[%clk 0:00:41.4]} 21. Bf1 {[%clk 0:01:18.3]} 21... b5 {[%clk 0:00:40.1]} 22.
Na2 {[%clk 0:01:09.4]} 22... Rxc2 {[%clk 0:00:34.8]} 23. Rxc2 {[%clk 0:01:10.3]}
23... Rxc2 {[%clk 0:00:35]} 24. Qxc2 {[%clk 0:01:10.4]} 24... Qd7 {[%clk
0:00:34.4]} 25. Nb4 {[%clk 0:01:09.5]} 25... Qc8 {[%clk 0:00:34.2]} 26. Qxc8+
{[%clk 0:01:08.8]} 26... Bxc8 {[%clk 0:00:35.1]} 27. Nd3 {[%clk 0:01:09.1]}
27... Nd7 {[%clk 0:00:33.6]} 28. b4 {[%clk 0:01:04.3]} 28... Nb6 {[%clk
0:00:31.9]} 29. Nc5 {[%clk 0:01:03.4]} 29... Kf8 {[%clk 0:00:28.5]} 30. Bd3
{[%clk 0:01:02.6]} 30... Ke7 {[%clk 0:00:28.5]} 31. Kf1 {[%clk 0:01:02.7]} 31...
f6 {[%clk 0:00:23]} 32. f4 {[%clk 0:01:02.2]} 32... g5 {[%clk 0:00:22.7]} 33.
Ke2 {[%clk 0:01:01.7]} 33... Kd6 {[%clk 0:00:22.5]} 34. Kd2 {[%clk 0:00:59.9]}
34... e5 {[%clk 0:00:22.4]} 35. fxe5+ {[%clk 0:00:56.9]} 35... fxe5 {[%clk
0:00:23.3]} 36. Kc3 {[%clk 0:00:56.8]} 36... e4 {[%clk 0:00:18.9]} 37. Be2
{[%clk 0:00:55.8]} 37... Nc4 {[%clk 0:00:05]} 38. Bxc4 {[%clk 0:00:54.9]} 38...
bxc4 {[%clk 0:00:05.9]} 39. Kd2 {[%clk 0:00:52.4]} 39... Kc6 {[%clk 0:00:02.7]}
40. Na4 {[%clk 0:00:52.2]} 40... Kb5 {[%clk 0:00:01.4]} 41. Nc3+ {[%clk
0:00:52.5]} 41... Kc6 {[%clk 0:00:01.8]} 42. a4 {[%clk 0:00:52.4]} 42... Bg4
{[%clk 0:00:01.1]} 43. Kc1 {[%clk 0:00:52.3]} 43... Kb6 {[%clk 0:00:01.4]} 44.
Nxd5+ {[%clk 0:00:51]} 44... Kc6 {[%clk 0:00:01.5]} 45. Nc3 {[%clk 0:00:51]} 1-0

[Event "Early-Titled-Tuesday-Blitz-September-12-2023"]
[Site "Chess.com"]
[Date "2023.09.12"]
[Round "9"]
[White "Pumpkin_in_moonlight"]
[Black "javierfreilemartin"]
[Result "0-1"]
[WhiteElo "2225"]
[BlackElo "2317"]
[TimeControl "180+1"]
[EndTime "9:45:11 PDT"]
[Termination "javierfreilemartin won by resignation"]

1. Nf3 {[%clk 0:03:00.9]} 1... Nf6 {[%clk 0:02:52.8]} 2. g3 {[%clk 0:03:00.4]}
2... g6 {[%clk 0:02:52]} 3. Bg2 {[%clk 0:03:00.5]} 3... Bg7 {[%clk 0:02:52.3]}
4. O-O {[%clk 0:03:00.2]} 4... d6 {[%clk 0:02:52.5]} 5. d4 {[%clk 0:02:59.4]}
5... O-O {[%clk 0:02:51.7]} 6. c4 {[%clk 0:02:58.7]} 6... Bf5 {[%clk 0:02:49.3]}
7. Nc3 {[%clk 0:02:58]} 7... c6 {[%clk 0:02:47.7]} 8. Nh4 {[%clk 0:02:47.7]}
8... Bg4 {[%clk 0:02:38.3]} 9. h3 {[%clk 0:02:42.9]} 9... Bc8 {[%clk 0:02:37.6]}
10. e4 {[%clk 0:02:40.6]} 10... Nbd7 {[%clk 0:02:37.3]} 11. f4 {[%clk
0:02:35.6]} 11... e5 {[%clk 0:02:28.5]} 12. dxe5 {[%clk 0:02:29.9]} 12... dxe5
{[%clk 0:02:28.2]} 13. f5 {[%clk 0:02:29.4]} 13... Nh5 {[%clk 0:02:23]} 14. Kh2
{[%clk 0:02:16.3]} 14... Nc5 {[%clk 0:02:19.5]} 15. Qxd8 {[%clk 0:01:57.9]}
15... Rxd8 {[%clk 0:02:17.8]} 16. Bg5 {[%clk 0:01:52.9]} 16... Rd3 {[%clk
0:02:16.2]} 17. f6 {[%clk 0:01:47.2]} 17... Bf8 {[%clk 0:02:14.4]} 18. Rad1
{[%clk 0:01:40.8]} 18... Rxg3 {[%clk 0:02:07.9]} 19. Nf3 {[%clk 0:01:25.3]}
19... Ne6 {[%clk 0:01:45.4]} 20. Bh4 {[%clk 0:01:21.8]} 20... Rxg2+ {[%clk
0:01:42.3]} 21. Kxg2 {[%clk 0:01:21.9]} 21... Nef4+ {[%clk 0:01:38.1]} 22. Kh2
{[%clk 0:01:21]} 22... Bxh3 {[%clk 0:01:36.7]} 23. Rg1 {[%clk 0:01:11.4]} 23...
Re8 {[%clk 0:01:26.7]} 24. Bf2 {[%clk 0:01:05.1]} 24... Nxf6 {[%clk 0:01:16.9]}
25. Bxa7 {[%clk 0:00:52.2]} 25... Bb4 {[%clk 0:01:15.7]} 26. Kg3 {[%clk
0:00:34.6]} 26... Bxc3 {[%clk 0:01:12.2]} 27. bxc3 {[%clk 0:00:34]} 27... Nxe4+
{[%clk 0:01:12.2]} 28. Kh2 {[%clk 0:00:27.5]} 28... Ra8 {[%clk 0:01:08.7]} 29.
Be3 {[%clk 0:00:13]} 29... Rxa2+ {[%clk 0:01:07.6]} 30. Nd2 {[%clk 0:00:10.8]}
30... Bf5 {[%clk 0:00:56.6]} 31. Bxf4 {[%clk 0:00:09.7]} 31... exf4 {[%clk
0:00:56.8]} 32. Rg2 {[%clk 0:00:06.5]} 32... Nxc3 {[%clk 0:00:55.6]} 33. Re1
{[%clk 0:00:04.7]} 33... Kg7 {[%clk 0:00:50.1]} 34. Nf3 {[%clk 0:00:04.8]} 34...
Rxg2+ {[%clk 0:00:47.7]} 35. Kxg2 {[%clk 0:00:05.7]} 35... Be4 {[%clk
0:00:46.9]} 36. Kf2 {[%clk 0:00:05.4]} 36... Bxf3 {[%clk 0:00:46.5]} 37. Kxf3
{[%clk 0:00:05.5]} 37... g5 {[%clk 0:00:47]} 38. Rg1 {[%clk 0:00:05.3]} 38... h6
{[%clk 0:00:46.4]} 39. Rc1 {[%clk 0:00:05.2]} 39... Na4 {[%clk 0:00:44.7]} 40.
Rb1 {[%clk 0:00:05.1]} 40... Nc5 {[%clk 0:00:44.6]} 41. Re1 {[%clk 0:00:04.9]}
41... Kf6 {[%clk 0:00:44.1]} 42. Kg4 {[%clk 0:00:04.8]} 42... Nd3 {[%clk
0:00:41.6]} 43. Kf3 {[%clk 0:00:04.2]} 43... Nxe1+ {[%clk 0:00:41.3]} 0-1

[Event "Early-Titled-Tuesday-Blitz-September-12-2023"]
[Site "Chess.com"]
[Date "2023.09.12"]
[Round "9"]
[White "bazar-wokzal"]
[Black "attack2mateU"]
[Result "1-0"]
[WhiteElo "2568"]
[BlackElo "2721"]
[TimeControl "180+1"]
[EndTime "9:45:23 PDT"]
[Termination "bazar-wokzal won on time"]

1. e4 {[%clk 0:03:00.9]} 1... c5 {[%clk 0:02:54]} 2. c3 {[%clk 0:03:00.3]} 2...
Nf6 {[%clk 0:02:53.5]} 3. e5 {[%clk 0:03:00]} 3... Nd5 {[%clk 0:02:54]} 4. d4
{[%clk 0:02:59.6]} 4... cxd4 {[%clk 0:02:54.9]} 5. cxd4 {[%clk 0:02:59.4]} 5...
d6 {[%clk 0:02:55]} 6. Bc4 {[%clk 0:02:58.9]} 6... Nb6 {[%clk 0:02:53.8]} 7. Bb3
{[%clk 0:02:58.7]} 7... dxe5 {[%clk 0:02:51.3]} 8. Qh5 {[%clk 0:02:57.7]} 8...
e6 {[%clk 0:02:49.2]} 9. dxe5 {[%clk 0:02:57.4]} 9... Nc6 {[%clk 0:02:36.1]} 10.
Nc3 {[%clk 0:02:55.4]} 10... Qd3 {[%clk 0:02:30.1]} 11. Bf4 {[%clk 0:02:54.9]}
11... Bb4 {[%clk 0:02:21.3]} 12. Ne2 {[%clk 0:02:53.8]} 12... Bxc3+ {[%clk
0:01:50]} 13. Nxc3 {[%clk 0:02:49.9]} 13... Nd4 {[%clk 0:01:29.1]} 14. Rd1
{[%clk 0:02:20.5]} 14... Nc2+ {[%clk 0:01:29.1]} 15. Bxc2 {[%clk 0:02:20.2]}
15... Qxc2 {[%clk 0:01:30]} 16. O-O {[%clk 0:01:55.9]} 16... O-O {[%clk
0:01:27.4]} 17. Rd2 {[%clk 0:01:48.1]} 17... Qg6 {[%clk 0:01:23.6]} 18. Qh3
{[%clk 0:01:48.2]} 18... Nd5 {[%clk 0:01:17.6]} 19. Nxd5 {[%clk 0:01:30.4]}
19... exd5 {[%clk 0:01:18.5]} 20. Qg3 {[%clk 0:01:30.9]} 20... Qxg3 {[%clk
0:01:11.7]} 21. Bxg3 {[%clk 0:01:30.9]} 21... Be6 {[%clk 0:01:12.6]} 22. Rc1
{[%clk 0:01:30.5]} 22... Rac8 {[%clk 0:00:56.8]} 23. Rdc2 {[%clk 0:01:30.4]}
23... Rxc2 {[%clk 0:00:57.2]} 24. Rxc2 {[%clk 0:01:31.3]} 24... d4 {[%clk
0:00:57.7]} 25. f4 {[%clk 0:01:26.1]} 25... Bxa2 {[%clk 0:00:52.5]} 26. Rc7
{[%clk 0:01:17.8]} 26... d3 {[%clk 0:00:43.4]} 27. Rd7 {[%clk 0:01:10.4]} 27...
Bc4 {[%clk 0:00:39.9]} 28. Kf2 {[%clk 0:01:09.5]} 28... Bb5 {[%clk 0:00:30]} 29.
Rd5 {[%clk 0:01:04]} 29... a6 {[%clk 0:00:30.3]} 30. Ke3 {[%clk 0:01:02.1]}
30... Re8 {[%clk 0:00:29]} 31. Be1 {[%clk 0:01:00]} 31... f6 {[%clk 0:00:27.8]}
32. Bc3 {[%clk 0:00:59.7]} 32... Kf7 {[%clk 0:00:26.8]} 33. g4 {[%clk
0:00:50.3]} 33... h5 {[%clk 0:00:22]} 34. gxh5 {[%clk 0:00:48.5]} 34... Ke6
{[%clk 0:00:17.9]} 35. Rd6+ {[%clk 0:00:46.4]} 35... Kf5 {[%clk 0:00:18.6]} 36.
h6 {[%clk 0:00:36.7]} 36... fxe5 {[%clk 0:00:17]} 37. Bxe5 {[%clk 0:00:37]}
37... g5 {[%clk 0:00:13.5]} 38. Rf6+ {[%clk 0:00:26.6]} 38... Kg4 {[%clk
0:00:13.8]} 39. h7 {[%clk 0:00:22]} 39... d2 {[%clk 0:00:01.1]} 40. Kxd2 {[%clk
0:00:20.3]} 1-0